[Event "Titled Tuesday Blitz October 11 Early 2022"]
[White "Fernandez Garcia, Gumersindo"]
[Black "Laohawirapap, Prin"]
[WhiteFideId "24516740"]
[BlackFideId "6205003"]
[WhiteElo "2072"]
[BlackElo "2113"]
[Result "0-1"]
[Round "09"]
[TimeControl "180+1"]
[Date "2022.10.12"]
[WhiteClock "0:00:08"]
[BlackClock "0:01:03"]

1. d4 {[%clk 0:02:59]}  Nf6 {[%clk 0:02:58]} 2. Nf3 {[%clk 0:02:59]}  g6 {[%clk 0:02:58]} 3. g3 {[%clk 0:02:59]}  Bg7 {[%clk 0:02:57]} 4. Bg2 {[%clk 0:02:58]}  O-O {[%clk 0:02:58]} 5. O-O {[%clk 0:02:59]}  d6 {[%clk 0:02:59]} 6. c4 {[%clk 0:02:59]}  Nc6 {[%clk 0:03:00]} 7. Nc3 {[%clk 0:02:59]}  a6 {[%clk 0:03:00]} 8. a4 {[%clk 0:02:29]}  e5 {[%clk 0:02:56]} 9. dxe5 {[%clk 0:02:22]}  dxe5 {[%clk 0:02:57]} 10. Bg5 {[%clk 0:02:20]}  Be6 {[%clk 0:02:54]} 11. b3 {[%clk 0:02:16]}  h6 {[%clk 0:02:51]} 12. Bxf6 {[%clk 0:02:12]}  Qxf6 {[%clk 0:02:37]} 13. e4 {[%clk 0:02:13]}  Nd4 {[%clk 0:02:28]} 14. Nd5 {[%clk 0:02:10]}  Qd8 {[%clk 0:02:27]} 15. Nxd4 {[%clk 0:02:00]}  exd4 {[%clk 0:02:28]} 16. Qd3 {[%clk 0:02:01]}  c6 {[%clk 0:02:25]} 17. Nf4 {[%clk 0:02:01]}  Bd7 {[%clk 0:02:24]} 18. Rad1 {[%clk 0:01:59]}  Qb6 {[%clk 0:02:21]} 19. Ne2 {[%clk 0:01:53]}  Rad8 {[%clk 0:02:05]} 20. f4 {[%clk 0:01:43]}  Rfe8 {[%clk 0:02:04]} 21. e5 {[%clk 0:01:43]}  Bf5 {[%clk 0:02:04]} 22. Be4 {[%clk 0:01:12]}  Bxe4 {[%clk 0:01:57]} 23. Qxe4 {[%clk 0:01:12]}  d3+ {[%clk 0:01:57]} 24. Kg2 {[%clk 0:01:04]}  dxe2 {[%clk 0:01:56]} 25. Qxe2 {[%clk 0:01:05]}  Rxd1 {[%clk 0:01:53]} 26. Rxd1 {[%clk 0:01:05]}  Rd8 {[%clk 0:01:54]} 27. Rd3 {[%clk 0:01:01]}  Rxd3 {[%clk 0:01:39]} 28. Qxd3 {[%clk 0:01:02]}  Qc7 {[%clk 0:01:37]} 29. e6 {[%clk 0:01:01]}  Kh7 {[%clk 0:01:34]} 30. f5 {[%clk 0:00:49]}  fxe6 {[%clk 0:01:33]} 31. fxg6+ {[%clk 0:00:46]}  Kg8 {[%clk 0:01:33]} 32. Qe3 {[%clk 0:00:44]}  Qe7 {[%clk 0:01:31]} 33. h4 {[%clk 0:00:41]}  e5 {[%clk 0:01:30]} 34. h5 {[%clk 0:00:40]}  e4 {[%clk 0:01:31]} 35. Kf1 {[%clk 0:00:32]}  c5 {[%clk 0:01:30]} 36. Ke2 {[%clk 0:00:30]}  b6 {[%clk 0:01:26]} 37. g4 {[%clk 0:00:26]}  Qe5 {[%clk 0:01:24]} 38. Qh3 {[%clk 0:00:20]}  Qb2+ {[%clk 0:01:22]} 39. Kf1 {[%clk 0:00:20]}  Qc1+ {[%clk 0:01:20]} 40. Ke2 {[%clk 0:00:20]}  Qc2+ {[%clk 0:01:20]} 41. Kf1 {[%clk 0:00:17]}  Qd1+ {[%clk 0:01:20]} 42. Kg2 {[%clk 0:00:15]}  Qe2+ {[%clk 0:01:18]} 43. Kh1 {[%clk 0:00:15]}  Qe1+ {[%clk 0:01:11]} 44. Kg2 {[%clk 0:00:14]}  Bd4 {[%clk 0:01:10]} 45. Qg3 {[%clk 0:00:09]}  Qxg3+ {[%clk 0:01:08]} 46. Kxg3 {[%clk 0:00:10]}  e3 {[%clk 0:01:06]} 47. Kf3 {[%clk 0:00:10]}  Kg7 {[%clk 0:01:06]} 48. Ke2 {[%clk 0:00:10]}  Kf6 {[%clk 0:01:06]} 49. Kf3 {[%clk 0:00:10]}  Kg5 {[%clk 0:01:06]} 50. g7 {[%clk 0:00:05]}  Bxg7 {[%clk 0:01:06]} 51. Kxe3 {[%clk 0:00:05]}  Kxg4 {[%clk 0:01:06]} 52. Ke4 {[%clk 0:00:06]}  Kxh5 {[%clk 0:01:06]} 53. Kd5 {[%clk 0:00:07]}  Bc3 {[%clk 0:01:03]} 54. Kc6 {[%clk 0:00:08]}  Ba5 {[%clk 0:01:03]} 0-1


[Site "https://www.chess.com"]

[Event "Titled Tuesday Blitz October 11 Early 2022"]
[White "Gonzalez, Francisco Silva"]
[Black "Manon-og, Ramon Jr."]
[WhiteFideId "1512285"]
[BlackFideId "5200776"]
[WhiteElo "2159"]
[BlackElo "2232"]
[Result "0-1"]
[Round "09"]
[TimeControl "180+1"]
[Date "2022.10.12"]
[WhiteClock "0:00:48"]
[BlackClock "0:00:40"]

1. d4 {[%clk 0:02:56]}  Nf6 {[%clk 0:02:58]} 2. c4 {[%clk 0:02:53]}  g6 {[%clk 0:02:58]} 3. Nc3 {[%clk 0:02:52]}  d5 {[%clk 0:02:58]} 4. Bf4 {[%clk 0:02:51]}  Bg7 {[%clk 0:02:58]} 5. Nf3 {[%clk 0:02:50]}  O-O {[%clk 0:02:58]} 6. e3 {[%clk 0:02:49]}  c6 {[%clk 0:02:58]} 7. h3 {[%clk 0:02:47]}  Nbd7 {[%clk 0:02:57]} 8. a4 {[%clk 0:02:46]}  Re8 {[%clk 0:02:57]} 9. a5 {[%clk 0:02:47]}  a6 {[%clk 0:02:57]} 10. Qb3 {[%clk 0:02:46]}  c5 {[%clk 0:02:54]} 11. cxd5 {[%clk 0:02:44]}  cxd4 {[%clk 0:02:53]} 12. exd4 {[%clk 0:02:44]}  Nh5 {[%clk 0:02:46]} 13. Be5 {[%clk 0:02:42]}  Nxe5 {[%clk 0:02:43]} 14. dxe5 {[%clk 0:02:41]}  Qc7 {[%clk 0:02:37]} 15. Qa4 {[%clk 0:02:40]}  Bd7 {[%clk 0:02:30]} 16. Qd4 {[%clk 0:02:39]}  Rad8 {[%clk 0:02:25]} 17. g4 {[%clk 0:02:38]}  Nf6 {[%clk 0:02:13]} 18. exf6 {[%clk 0:02:36]}  Bxf6 {[%clk 0:02:14]} 19. Qd2 {[%clk 0:02:34]}  e5 {[%clk 0:02:11]} 20. Be2 {[%clk 0:02:31]}  e4 {[%clk 0:02:12]} 21. d6 {[%clk 0:02:21]}  Qc5 {[%clk 0:02:04]} 22. Nxe4 {[%clk 0:02:01]}  Rxe4 {[%clk 0:02:00]} 23. O-O {[%clk 0:02:00]}  Bc6 {[%clk 0:01:47]} 24. Rad1 {[%clk 0:01:58]}  Rb4 {[%clk 0:01:39]} 25. b3 {[%clk 0:01:42]}  Rxb3 {[%clk 0:01:37]} 26. Nd4 {[%clk 0:01:37]}  Rxh3 {[%clk 0:01:30]} 27. Nxc6 {[%clk 0:01:27]}  Qxc6 {[%clk 0:01:31]} 28. f3 {[%clk 0:01:27]}  Be5 {[%clk 0:01:30]} 29. d7 {[%clk 0:01:23]}  Qc5+ {[%clk 0:01:21]} 30. Rf2 {[%clk 0:01:21]}  Rh2 {[%clk 0:01:02]} 31. Bf1 {[%clk 0:01:10]}  Bg3 {[%clk 0:01:02]} 32. Re1 {[%clk 0:00:59]}  Qxf2+ {[%clk 0:00:44]} 33. Qxf2 {[%clk 0:00:58]}  Bxf2+ {[%clk 0:00:45]} 34. Kxh2 {[%clk 0:00:59]}  Bxe1 {[%clk 0:00:45]} 35. f4 {[%clk 0:00:56]}  Rxd7 {[%clk 0:00:45]} 36. Bg2 {[%clk 0:00:57]}  Bxa5 {[%clk 0:00:43]} 37. Be4 {[%clk 0:00:55]}  b5 {[%clk 0:00:42]} 38. Bc6 {[%clk 0:00:55]}  Rc7 {[%clk 0:00:40]} 39. Be8 {[%clk 0:00:54]}  Kf8 {[%clk 0:00:39]} 40. g5 {[%clk 0:00:54]}  Kxe8 {[%clk 0:00:39]} 41. f5 {[%clk 0:00:54]}  gxf5 {[%clk 0:00:39]} 42. Kh3 {[%clk 0:00:54]}  Rc4 {[%clk 0:00:38]} 43. g6 {[%clk 0:00:53]}  fxg6 {[%clk 0:00:39]} 44. Kg3 {[%clk 0:00:53]}  Re4 {[%clk 0:00:36]} 45. Kf3 {[%clk 0:00:52]}  b4 {[%clk 0:00:37]} 46. Kf2 {[%clk 0:00:48]}  b3 {[%clk 0:00:38]} 47. Kf1 {[%clk 0:00:48]}  b2 {[%clk 0:00:39]} 48. Kg1 {[%clk 0:00:48]}  b1=Q+ {[%clk 0:00:40]} 0-1


[Site "https://www.chess.com"]

[Event "Titled Tuesday Blitz October 11 Early 2022"]
[White "Hanley, Craig A"]
[Black "Atanasov, Anthony"]
[WhiteFideId "408514"]
[BlackFideId "2623897"]
[WhiteElo "2439"]
[BlackElo "2048"]
[Result "0-1"]
[Round "09"]
[TimeControl "180+1"]
[Date "2022.10.12"]
[WhiteClock "0:00:04"]
[BlackClock "0:00:48"]

1. e4 {[%clk 0:02:58]}  e5 {[%clk 0:03:00]} 2. f4 {[%clk 0:02:57]}  exf4 {[%clk 0:02:55]} 3. Nf3 {[%clk 0:02:55]}  Nf6 {[%clk 0:02:44]} 4. e5 {[%clk 0:02:49]}  Nh5 {[%clk 0:02:39]} 5. d4 {[%clk 0:02:45]}  d5 {[%clk 0:02:37]} 6. c4 {[%clk 0:02:14]}  c6 {[%clk 0:02:33]} 7. Nc3 {[%clk 0:02:14]}  Bg4 {[%clk 0:02:32]} 8. cxd5 {[%clk 0:01:59]}  cxd5 {[%clk 0:02:31]} 9. Qb3 {[%clk 0:01:38]}  Nc6 {[%clk 0:02:18]} 10. Qxb7 {[%clk 0:01:32]}  Rc8 {[%clk 0:01:47]} 11. Bb5 {[%clk 0:01:28]}  Qd7 {[%clk 0:01:35]} 12. Qxd7+ {[%clk 0:01:17]}  Bxd7 {[%clk 0:01:36]} 13. Nxd5 {[%clk 0:01:07]}  Nxe5 {[%clk 0:01:36]} 14. Bxd7+ {[%clk 0:01:04]}  Nxd7 {[%clk 0:01:37]} 15. O-O {[%clk 0:00:47]}  Bd6 {[%clk 0:01:35]} 16. Re1+ {[%clk 0:00:42]}  Kd8 {[%clk 0:01:34]} 17. Bd2 {[%clk 0:00:42]}  Nb6 {[%clk 0:01:30]} 18. Ba5 {[%clk 0:00:36]}  Rc6 {[%clk 0:01:29]} 19. Rac1 {[%clk 0:00:32]}  Kd7 {[%clk 0:01:25]} 20. Bxb6 {[%clk 0:00:10]}  axb6 {[%clk 0:01:22]} 21. Rcd1 {[%clk 0:00:07]}  Ra8 {[%clk 0:01:17]} 22. a3 {[%clk 0:00:06]}  Ra5 {[%clk 0:01:17]} 23. Ne5+ {[%clk 0:00:06]}  Bxe5 {[%clk 0:01:16]} 24. dxe5 {[%clk 0:00:07]}  Ke6 {[%clk 0:01:13]} 25. Nb4 {[%clk 0:00:05]}  Rcc5 {[%clk 0:01:02]} 26. Rd6+ {[%clk 0:00:05]}  Kf5 {[%clk 0:01:00]} 27. Rxb6 {[%clk 0:00:06]}  Rxe5 {[%clk 0:00:59]} 28. Rf1 {[%clk 0:00:05]}  Re2 {[%clk 0:00:56]} 29. Nd3 {[%clk 0:00:05]}  Rd5 {[%clk 0:00:55]} 30. Rf3 {[%clk 0:00:04]}  Rd2 {[%clk 0:00:54]} 31. Rb3 {[%clk 0:00:04]}  g5 {[%clk 0:00:49]} 32. h3 {[%clk 0:00:04]}  Ng3 {[%clk 0:00:48]} 0-1


[Site "https://www.chess.com"]

[Event "Titled Tuesday Blitz October 11 Early 2022"]
[White "Hansen, Eric"]
[Black "Munkhgal, Gombosuren"]
[WhiteFideId "2606771"]
[BlackFideId "4901266"]
[WhiteElo "2568"]
[BlackElo "2576"]
[Result "0-1"]
[Round "09"]
[TimeControl "180+1"]
[Date "2022.10.11"]
[WhiteClock "0:00:01"]
[BlackClock "0:00:03"]

1. d4 {[%clk 0:03:00]}  Nf6 {[%clk 0:02:49]} 2. c4 {[%clk 0:02:57]}  e6 {[%clk 0:02:50]} 3. Nf3 {[%clk 0:02:57]}  d5 {[%clk 0:02:49]} 4. Nc3 {[%clk 0:02:57]}  a6 {[%clk 0:02:49]} 5. cxd5 {[%clk 0:02:56]}  exd5 {[%clk 0:02:49]} 6. Bg5 {[%clk 0:02:56]}  Be6 {[%clk 0:02:50]} 7. e3 {[%clk 0:02:55]}  Nbd7 {[%clk 0:02:50]} 8. Bd3 {[%clk 0:02:56]}  Bd6 {[%clk 0:02:50]} 9. O-O {[%clk 0:02:55]}  c6 {[%clk 0:02:51]} 10. h3 {[%clk 0:02:53]}  Qc7 {[%clk 0:02:50]} 11. Ne2 {[%clk 0:02:51]}  h6 {[%clk 0:02:51]} 12. Bf4 {[%clk 0:02:51]}  g5 {[%clk 0:02:49]} 13. Bxd6 {[%clk 0:02:52]}  Qxd6 {[%clk 0:02:50]} 14. Ng3 {[%clk 0:02:50]}  g4 {[%clk 0:02:46]} 15. hxg4 {[%clk 0:02:49]}  Bxg4 {[%clk 0:02:46]} 16. Nf5 {[%clk 0:02:46]}  Bxf5 {[%clk 0:02:41]} 17. Bxf5 {[%clk 0:02:47]}  Rg8 {[%clk 0:02:41]} 18. Re1 {[%clk 0:02:38]}  O-O-O {[%clk 0:02:40]} 19. Ne5 {[%clk 0:02:38]}  Rg7 {[%clk 0:02:35]} 20. Qf3 {[%clk 0:02:31]}  Rdg8 {[%clk 0:01:34]} 21. Bh3 {[%clk 0:02:27]}  Kc7 {[%clk 0:01:27]} 22. Nxd7 {[%clk 0:02:22]}  Nxd7 {[%clk 0:01:26]} 23. e4 {[%clk 0:02:23]}  dxe4 {[%clk 0:01:23]} 24. Rxe4 {[%clk 0:02:24]}  Kb8 {[%clk 0:00:57]} 25. Rae1 {[%clk 0:02:23]}  Nf6 {[%clk 0:00:56]} 26. Re7 {[%clk 0:02:08]}  Ng4 {[%clk 0:00:56]} 27. Qb3 {[%clk 0:01:43]}  b5 {[%clk 0:00:35]} 28. Re8+ {[%clk 0:01:32]}  Rxe8 {[%clk 0:00:24]} 29. Rxe8+ {[%clk 0:01:32]}  Ka7 {[%clk 0:00:25]} 30. Bxg4 {[%clk 0:01:21]}  Rxg4 {[%clk 0:00:24]} 31. Qxf7+ {[%clk 0:01:21]}  Kb6 {[%clk 0:00:25]} 32. Re6 {[%clk 0:01:02]}  Qxd4 {[%clk 0:00:25]} 33. Qf3 {[%clk 0:01:03]}  Qc4 {[%clk 0:00:11]} 34. Qe3+ {[%clk 0:00:54]}  Ka5 {[%clk 0:00:09]} 35. Qd2+ {[%clk 0:00:40]}  b4 {[%clk 0:00:06]} 36. Qd8+ {[%clk 0:00:35]}  Kb5 {[%clk 0:00:05]} 37. Qb8+ {[%clk 0:00:22]}  Ka5 {[%clk 0:00:05]} 38. Qc7+ {[%clk 0:00:19]}  Kb5 {[%clk 0:00:05]} 39. Re5+ {[%clk 0:00:11]}  c5 {[%clk 0:00:06]} 40. Qd8 {[%clk 0:00:06]}  Qc1+ {[%clk 0:00:04]} 41. Kh2 {[%clk 0:00:05]}  Qf4+ {[%clk 0:00:04]} 42. Kg1 {[%clk 0:00:06]}  Qxe5 {[%clk 0:00:04]} 43. Qc8 {[%clk 0:00:05]}  Qe1+ {[%clk 0:00:03]} 44. Kh2 {[%clk 0:00:04]}  Qe5+ {[%clk 0:00:03]} 45. Kg1 {[%clk 0:00:05]}  Rd4 {[%clk 0:00:03]} 46. Qb7+ {[%clk 0:00:02]}  Ka5 {[%clk 0:00:03]} 47. g3 {[%clk 0:00:02]}  Rd1+ {[%clk 0:00:02]} 48. Kh2 {[%clk 0:00:01]}  Qd5 {[%clk 0:00:03]} 0-1


[Site "https://www.chess.com"]

[Event "Titled Tuesday Blitz October 11 Early 2022"]
[White "Haukenfrers, Dale"]
[Black "Ciuffoletti, Paolo"]
[WhiteFideId "2603780"]
[BlackFideId "807630"]
[WhiteElo "1973"]
[BlackElo "2143"]
[Result "0-1"]
[Round "09"]
[TimeControl "180+1"]
[Date "2022.10.12"]
[WhiteClock "0:02:01"]
[BlackClock "0:00:52"]

1. f3 {[%clk 0:03:00]}  e5 {[%clk 0:02:57]} 2. c3 {[%clk 0:03:01]}  d5 {[%clk 0:02:57]} 3. e4 {[%clk 0:03:01]}  dxe4 {[%clk 0:02:56]} 4. Be2 {[%clk 0:03:01]}  Bc5 {[%clk 0:02:50]} 5. b4 {[%clk 0:02:56]}  Bb6 {[%clk 0:02:48]} 6. a4 {[%clk 0:02:55]}  Nc6 {[%clk 0:02:23]} 7. a5 {[%clk 0:02:53]}  Bxg1 {[%clk 0:02:23]} 8. Rxg1 {[%clk 0:02:53]}  Qh4+ {[%clk 0:02:23]} 9. Kf1 {[%clk 0:02:50]}  Qxh2 {[%clk 0:02:22]} 10. b5 {[%clk 0:02:44]}  Nce7 {[%clk 0:02:18]} 11. Qa4 {[%clk 0:02:42]}  Nf6 {[%clk 0:02:15]} 12. a6 {[%clk 0:02:39]}  bxa6 {[%clk 0:02:09]} 13. b6+ {[%clk 0:02:31]}  Bd7 {[%clk 0:02:08]} 14. b7 {[%clk 0:02:30]}  Rb8 {[%clk 0:02:06]} 15. Qxa6 {[%clk 0:02:30]}  Nf5 {[%clk 0:01:58]} 16. Qxa7 {[%clk 0:02:26]}  O-O {[%clk 0:01:57]} 17. Ba3 {[%clk 0:02:20]}  Rfe8 {[%clk 0:01:36]} 18. Bc5 {[%clk 0:02:16]}  Ng3+ {[%clk 0:01:25]} 19. Ke1 {[%clk 0:02:16]}  Nxe2 {[%clk 0:01:25]} 20. Kxe2 {[%clk 0:02:15]}  exf3+ {[%clk 0:01:26]} 21. Kxf3 {[%clk 0:02:15]}  Bg4+ {[%clk 0:01:21]} 22. Kf2 {[%clk 0:02:15]}  Ne4+ {[%clk 0:01:13]} 23. Kf1 {[%clk 0:02:12]}  Qf4+ {[%clk 0:01:03]} 24. Ke1 {[%clk 0:02:07]}  Rxb7 {[%clk 0:00:55]} 25. Be3 {[%clk 0:02:05]}  Qg3+ {[%clk 0:00:53]} 26. Bf2 {[%clk 0:02:04]}  Rxa7 {[%clk 0:00:52]} 27. Bxg3 {[%clk 0:02:02]}  Rxa1 {[%clk 0:00:52]} 28. d3 {[%clk 0:02:01]}  Rxb1# {[%clk 0:00:52]} 0-1


[Site "https://www.chess.com"]

[Event "Titled Tuesday Blitz October 11 Early 2022"]
[White "Ilkhomi, Jaloliddin"]
[Black "Averjanov, Alexey"]
[WhiteFideId "14700948"]
[BlackFideId "14109867"]
[WhiteElo "2550"]
[BlackElo "2683"]
[Result "0-1"]
[Round "09"]
[TimeControl "180+1"]
[Date "2022.10.12"]
[WhiteClock "0:00:05"]
[BlackClock "0:00:27"]

1. d4 {[%clk 0:03:00]}  d5 {[%clk 0:02:59]} 2. Bf4 {[%clk 0:03:00]}  Nf6 {[%clk 0:03:00]} 3. e3 {[%clk 0:03:00]}  e6 {[%clk 0:03:00]} 4. Nd2 {[%clk 0:03:00]}  c5 {[%clk 0:03:00]} 5. Ngf3 {[%clk 0:03:01]}  Bd6 {[%clk 0:02:59]} 6. Bg3 {[%clk 0:03:00]}  Qc7 {[%clk 0:02:59]} 7. c3 {[%clk 0:03:00]}  Nbd7 {[%clk 0:02:59]} 8. Bd3 {[%clk 0:02:57]}  O-O {[%clk 0:02:59]} 9. O-O {[%clk 0:02:56]}  e5 {[%clk 0:02:59]} 10. dxe5 {[%clk 0:02:57]}  Nxe5 {[%clk 0:03:00]} 11. Nxe5 {[%clk 0:02:58]}  Bxe5 {[%clk 0:03:01]} 12. Bxe5 {[%clk 0:02:58]}  Qxe5 {[%clk 0:03:02]} 13. Qe2 {[%clk 0:02:57]}  b6 {[%clk 0:03:01]} 14. Rae1 {[%clk 0:02:57]}  Bb7 {[%clk 0:03:01]} 15. e4 {[%clk 0:02:57]}  dxe4 {[%clk 0:02:57]} 16. Nxe4 {[%clk 0:02:58]}  Bxe4 {[%clk 0:02:45]} 17. Bxe4 {[%clk 0:02:58]}  Nxe4 {[%clk 0:02:44]} 18. Qxe4 {[%clk 0:02:58]}  Qxe4 {[%clk 0:02:44]} 19. Rxe4 {[%clk 0:02:59]}  Rfe8 {[%clk 0:02:44]} 20. Rfe1 {[%clk 0:02:59]}  Kf8 {[%clk 0:02:44]} 21. Kf1 {[%clk 0:02:58]}  Rxe4 {[%clk 0:02:42]} 22. Rxe4 {[%clk 0:02:59]}  Re8 {[%clk 0:02:42]} 23. Rxe8+ {[%clk 0:02:58]}  Kxe8 {[%clk 0:02:43]} 24. Ke2 {[%clk 0:02:59]}  Ke7 {[%clk 0:02:42]} 25. Kd3 {[%clk 0:02:55]}  Kd6 {[%clk 0:02:42]} 26. Ke4 {[%clk 0:02:55]}  Ke6 {[%clk 0:02:40]} 27. g4 {[%clk 0:02:56]}  f6 {[%clk 0:02:36]} 28. f4 {[%clk 0:02:52]}  g6 {[%clk 0:02:35]} 29. f5+ {[%clk 0:02:45]}  gxf5+ {[%clk 0:02:30]} 30. gxf5+ {[%clk 0:02:46]}  Kd6 {[%clk 0:02:28]} 31. c4 {[%clk 0:02:45]}  Kc6 {[%clk 0:02:08]} 32. a4 {[%clk 0:02:40]}  a6 {[%clk 0:02:06]} 33. b3 {[%clk 0:02:37]}  Kd6 {[%clk 0:01:56]} 34. Kf4 {[%clk 0:02:36]}  Kc6 {[%clk 0:01:52]} 35. Ke4 {[%clk 0:02:10]}  h6 {[%clk 0:01:49]} 36. Kf3 {[%clk 0:02:04]}  h5 {[%clk 0:01:40]} 37. Kg3 {[%clk 0:01:29]}  Kd6 {[%clk 0:01:38]} 38. Kf4 {[%clk 0:01:02]}  Kc6 {[%clk 0:01:36]} 39. h3 {[%clk 0:01:02]}  b5 {[%clk 0:01:29]} 40. cxb5+ {[%clk 0:00:25]}  axb5 {[%clk 0:01:30]} 41. a5 {[%clk 0:00:24]}  Kb7 {[%clk 0:00:49]} 42. Ke4 {[%clk 0:00:20]}  Ka6 {[%clk 0:00:50]} 43. Kd5 {[%clk 0:00:21]}  c4 {[%clk 0:00:46]} 44. bxc4 {[%clk 0:00:17]}  b4 {[%clk 0:00:47]} 45. Kd4 {[%clk 0:00:04]}  Kxa5 {[%clk 0:00:41]} 46. Kd3 {[%clk 0:00:03]}  Kb6 {[%clk 0:00:30]} 47. Kc2 {[%clk 0:00:04]}  Kc5 {[%clk 0:00:28]} 48. Kd3 {[%clk 0:00:02]}  h4 {[%clk 0:00:25]} 49. Ke4 {[%clk 0:00:02]}  Kxc4 {[%clk 0:00:26]} 50. Kf4 {[%clk 0:00:03]}  b3 {[%clk 0:00:26]} 51. Kg4 {[%clk 0:00:04]}  b2 {[%clk 0:00:27]} 52. Kxh4 {[%clk 0:00:04]}  b1=Q {[%clk 0:00:27]} 53. Kg4 {[%clk 0:00:05]}  Qg1+ {[%clk 0:00:27]} 54. Kh5 {[%clk 0:00:05]}  Qg5# {[%clk 0:00:27]} 0-1


[Site "https://www.chess.com"]

[Event "Titled Tuesday Blitz October 11 Early 2022"]
[White "Jaskolka, Tomasz"]
[Black "Slaby, Jerzy"]
[WhiteFideId "1170791"]
[BlackFideId "1121405"]
[WhiteElo "2126"]
[BlackElo "2544"]
[Result "1-0"]
[Round "09"]
[TimeControl "180+1"]
[Date "2022.10.12"]
[WhiteClock "0:00:25"]
[BlackClock "0:00:13"]

1. d4 {[%clk 0:02:58]}  Nf6 {[%clk 0:02:56]} 2. c4 {[%clk 0:02:58]}  g6 {[%clk 0:02:51]} 3. g3 {[%clk 0:02:58]}  Bg7 {[%clk 0:02:51]} 4. Bg2 {[%clk 0:02:58]}  O-O {[%clk 0:02:51]} 5. Nc3 {[%clk 0:02:59]}  c6 {[%clk 0:02:51]} 6. Nf3 {[%clk 0:02:52]}  d6 {[%clk 0:02:37]} 7. O-O {[%clk 0:02:50]}  Be6 {[%clk 0:02:34]} 8. b3 {[%clk 0:02:44]}  d5 {[%clk 0:02:33]} 9. c5 {[%clk 0:02:37]}  Ne4 {[%clk 0:02:22]} 10. Bb2 {[%clk 0:02:35]}  Nxc3 {[%clk 0:02:18]} 11. Bxc3 {[%clk 0:02:35]}  Nd7 {[%clk 0:02:18]} 12. b4 {[%clk 0:02:33]}  Bf5 {[%clk 0:02:16]} 13. Nh4 {[%clk 0:02:32]}  Be6 {[%clk 0:01:55]} 14. Qb3 {[%clk 0:02:27]}  f5 {[%clk 0:01:42]} 15. f4 {[%clk 0:02:22]}  Nf6 {[%clk 0:01:37]} 16. Nf3 {[%clk 0:02:19]}  Ne4 {[%clk 0:01:36]} 17. Ne5 {[%clk 0:02:18]}  Bxe5 {[%clk 0:01:11]} 18. fxe5 {[%clk 0:02:17]}  Qe8 {[%clk 0:01:05]} 19. e3 {[%clk 0:02:16]}  g5 {[%clk 0:01:01]} 20. a4 {[%clk 0:02:10]}  a6 {[%clk 0:00:58]} 21. b5 {[%clk 0:02:08]}  axb5 {[%clk 0:00:59]} 22. axb5 {[%clk 0:02:08]}  Rxa1 {[%clk 0:00:58]} 23. Rxa1 {[%clk 0:02:03]}  Qg6 {[%clk 0:00:55]} 24. Be1 {[%clk 0:01:40]}  f4 {[%clk 0:00:49]} 25. bxc6 {[%clk 0:01:40]}  bxc6 {[%clk 0:00:48]} 26. Qb7 {[%clk 0:01:39]}  f3 {[%clk 0:00:42]} 27. Bxf3 {[%clk 0:01:29]}  Rxf3 {[%clk 0:00:43]} 28. Qxc6 {[%clk 0:01:26]}  Qf5 {[%clk 0:00:35]} 29. Qe8+ {[%clk 0:00:59]}  Kg7 {[%clk 0:00:25]} 30. Qxe7+ {[%clk 0:00:58]}  Bf7 {[%clk 0:00:25]} 31. Bb4 {[%clk 0:00:40]}  Nxg3 {[%clk 0:00:21]} 32. Qf6+ {[%clk 0:00:36]}  Qxf6 {[%clk 0:00:16]} 33. exf6+ {[%clk 0:00:37]}  Kxf6 {[%clk 0:00:16]} 34. hxg3 {[%clk 0:00:37]}  Rxe3 {[%clk 0:00:12]} 35. c6 {[%clk 0:00:28]}  Rxg3+ {[%clk 0:00:11]} 36. Kf2 {[%clk 0:00:29]}  Rb3 {[%clk 0:00:12]} 37. c7 {[%clk 0:00:27]}  Be6 {[%clk 0:00:12]} 38. Ra6 {[%clk 0:00:27]}  Rb2+ {[%clk 0:00:12]} 39. Ke3 {[%clk 0:00:25]}  Rc2 {[%clk 0:00:13]} 40. Bc5 {[%clk 0:00:25]} 1-0


[Site "https://www.chess.com"]

[Event "Titled Tuesday Blitz October 11 Early 2022"]
[White "Johnson, Ben"]
[Black "Fernandez Siles, Luis"]
[WhiteFideId "2010917"]
[BlackFideId "2209420"]
[WhiteElo "2216"]
[BlackElo "2186"]
[Result "1-0"]
[Round "09"]
[TimeControl "180+1"]
[Date "2022.10.12"]
[WhiteClock "0:00:18"]
[BlackClock "0:00:01"]

1. Nf3 {[%clk 0:03:00]}  Nf6 {[%clk 0:02:55]} 2. c4 {[%clk 0:03:00]}  g6 {[%clk 0:02:54]} 3. b3 {[%clk 0:03:00]}  Bg7 {[%clk 0:02:55]} 4. Bb2 {[%clk 0:03:01]}  O-O {[%clk 0:02:54]} 5. g3 {[%clk 0:03:01]}  d6 {[%clk 0:02:55]} 6. d4 {[%clk 0:03:01]}  c5 {[%clk 0:02:52]} 7. Bg2 {[%clk 0:02:59]}  Ne4 {[%clk 0:02:48]} 8. O-O {[%clk 0:02:50]}  Nc6 {[%clk 0:02:44]} 9. e3 {[%clk 0:02:45]}  Bg4 {[%clk 0:02:38]} 10. Qc2 {[%clk 0:02:36]}  cxd4 {[%clk 0:01:57]} 11. Qxe4 {[%clk 0:02:14]}  Bf5 {[%clk 0:01:57]} 12. Qh4 {[%clk 0:02:13]}  Bf6 {[%clk 0:01:47]} 13. Ng5 {[%clk 0:01:56]}  h5 {[%clk 0:01:46]} 14. e4 {[%clk 0:01:30]}  Bg4 {[%clk 0:01:43]} 15. h3 {[%clk 0:01:18]}  Be2 {[%clk 0:01:39]} 16. Re1 {[%clk 0:01:16]}  d3 {[%clk 0:01:40]} 17. Bxf6 {[%clk 0:01:11]}  exf6 {[%clk 0:01:41]} 18. Nf3 {[%clk 0:01:09]}  Ne5 {[%clk 0:01:28]} 19. Nbd2 {[%clk 0:00:55]}  Kg7 {[%clk 0:01:17]} 20. Nxe5 {[%clk 0:00:42]}  dxe5 {[%clk 0:01:15]} 21. Bf3 {[%clk 0:00:38]}  Qd4 {[%clk 0:00:47]} 22. Bxe2 {[%clk 0:00:35]}  dxe2 {[%clk 0:00:47]} 23. Nf3 {[%clk 0:00:33]}  Qc3 {[%clk 0:00:48]} 24. Kg2 {[%clk 0:00:30]}  f5 {[%clk 0:00:37]} 25. exf5 {[%clk 0:00:27]}  Rad8 {[%clk 0:00:32]} 26. f6+ {[%clk 0:00:26]}  Kh7 {[%clk 0:00:30]} 27. g4 {[%clk 0:00:22]}  e4 {[%clk 0:00:28]} 28. Ng5+ {[%clk 0:00:18]}  Kg8 {[%clk 0:00:15]} 29. Nxe4 {[%clk 0:00:19]}  Qb2 {[%clk 0:00:13]} 30. gxh5 {[%clk 0:00:18]}  g5 {[%clk 0:00:01]} 31. Qxg5+ {[%clk 0:00:18]}  Kh7 {[%clk 0:00:01]} 32. Qg7# {[%clk 0:00:18]} 1-0


[Site "https://www.chess.com"]